[Event "EYTCC Open U12 2018"]
[Site "Bad Blankeburg"]
[Date "2018.07.18"]
[Round "9"]
[White "Droin, Augustin"]
[Black "Hommer, Jeremy"]
[Result "0-1"]
[ECO "B11"]
[WhiteElo "2095"]
[BlackElo "1926"]
[Annotator "NA"]
[PlyCount "64"]
[EventDate "2018.07.12"]
[EventType "swiss"]
[EventCountry "GER"]
[SourceTitle "playchess.com"]
[Source "ChessBase"]
[SourceQuality "1"]
[WhiteTeam "France"]
[BlackTeam "Germany"]
[WhiteTeamCountry "FRA"]
[BlackTeamCountry "GER"]
[TimeControl "40/5400+30:1800+30"]

1. e4 {[%emt 0:00:00]} c6 {[%emt 0:00:00]} 2. Nc3 {[%emt 0:00:00]} d5 {[%emt 0:00:00]} 3. Nf3 {[%emt 0:00:04]} Bg4 {[%emt 0:00:12]} 4. h3 {[%emt 0:00:56]} Bxf3 {[%emt 0:00:11]} 5. Qxf3 {[%emt 0:00:09]} e6 {[%emt 0:00:11]} 6. Be2 {[%emt 0:03:37]} Nd7 {[%emt 0:01:11] B11: Caro-Kann (Zweispringer-Variante)} (6... Bc5 7. O-O Ne7 8. Na4 Bd6 9. d4 dxe4 10. Qxe4 Nd7 11. Rd1 O-O 12. Qf3 Qa5 13. Nc3 Nf6 14. Ne4 Nxe4 15. Qxe4 {1-0 (57) Vachier Lagrave,M (2783)-Mamedyarov,S (2784) Paris 2017 CBM 179 [Yermolinsky,A]}) 7. Qg3 {[%emt 0:03:21]} g6 {[%emt 0:03:24]} 8. O-O {[%emt 0:00:42]} Bg7 {[%emt 0:00:14]} 9. d3 {[%emt 0:01:54]} Ne7 {[%emt 0:02:16]} 10. Kh1 {[%emt 0:09:14]} O-O {[%emt 0:03:15] LiveBook: 3 Games} 11. Bd2 $146 {[%emt 0:00:51]} ({Vorgänger:} 11. a4 Rc8 12. a5 a6 13. Bg5 h6 {½-½ (40) Sahl,B (2355)-Hole,O (2367) Norway 2012}) 11... a5 {[%emt 0:05:30]} 12. f4 {[%emt 0:05:10]} a4 {[%emt 0:07:41]} 13. a3 {[%emt 0:00:47]} Qb8 {[%emt 0:08:21]} 14. h4 {[%emt 0:07:47]} Rd8 {[%emt 0:16:32]} (14... h5 $11) 15. h5 {[%emt 0:11:56]} b5 {[%emt 0:08:20]} 16. Be1 {[%emt 0:09:28]} c5 {[%emt 0:04:08]} 17. f5 {[%emt 0:05:41]} Qxg3 {[%emt 0:02:14]} 18. Bxg3 {[%emt 0:00:06]} b4 {[%emt 0:13:07]} 19. axb4 {[%emt 0:02:29]} a3 {[%emt 0:00:09]} 20. Bh4 {[%emt 0:04:34]} axb2 {[%emt 0:06:04]} 21. Rxa8 {[%emt 0:01:34]} Rxa8 {[%emt 0:00:02]} 22. f6 $2 {[%emt 0:01:00] [#]} (22. Nb1 $17 {was worth a try.} Bf6 23. Bxf6 Nxf6 24. fxg6) 22... Bh8 $2 {[%emt 0:00:25]} (22... Bxf6 $1 $19 {[%mdl 512]} 23. Bxf6 (23. Rxf6 Nxf6) 23... Nxf6 24. Rxf6 cxb4) 23. fxe7 {[%emt 0:11:27]} Bxc3 {[%emt 0:00:11]} 24. exd5 {[%emt 0:00:10]} exd5 {[%emt 0:02:02]} 25. bxc5 {[%emt 0:02:49]} Nf6 {[%emt 0:10:07]} 26. Bxf6 {[%emt 0:04:46]} Bxf6 {[%emt 0:00:04]} 27. Rb1 {[%emt 0:00:38]} Re8 {[%emt 0:00:57]} 28. Bf3 {[%emt 0:05:44]} Rxe7 $19 {[%emt 0:01:08]} 29. c6 {[%emt 0:00:17]} Ra7 {[%emt 0:01:01]} 30. g3 {[%emt 0:00:29]} Be5 {[%emt 0:00:33]} 31. c7 {[%emt 0:02:18]} Rxc7 {[%emt 0:00:15]} 32. Bd1 {[%emt 0:00:38]} Bc3 {[%emt 0:00:08]} 0-1

[Event "EYTCC Open U12 2018"]
[Site "Bad Blankeburg"]
[Date "2018.07.18"]
[Round "9"]
[White "Razafindratsima, Timothe"]
[Black "Sosa Costa, Leonardo"]
[Result "1/2-1/2"]
[ECO "B52"]
[WhiteElo "1975"]
[BlackElo "1945"]
[Annotator "NA"]
[PlyCount "93"]
[EventDate "2018.07.12"]
[EventType "swiss"]
[EventCountry "GER"]
[SourceTitle "playchess.com"]
[Source "ChessBase"]
[SourceQuality "1"]
[WhiteTeam "France"]
[BlackTeam "Uruguay"]
[WhiteTeamCountry "FRA"]
[BlackTeamCountry "URU"]
[TimeControl "40/5400+30:1800+30"]

1. e4 {[%emt 0:00:00]} c5 {[%emt 0:00:00]} 2. Nf3 {[%emt 0:00:00]} d6 {[%emt 0:00:00]} 3. Bb5+ {[%emt 0:00:00]} Bd7 {[%emt 0:00:00]} 4. Bxd7+ {[%emt 0:00:00]} Qxd7 {[%emt 0:00:01]} 5. O-O {[%emt 0:00:13]} Nf6 {[%emt 0:01:15]} 6. Qe2 {[%emt 0:00:25]} Nc6 {[%emt 0:01:57]} 7. Rd1 {[%emt 0:01:03]} g6 {[%emt 0:04:57]} 8. c3 {[%emt 0:02:08]} Bg7 {[%emt 0:04:38]} 9. d4 {[%emt 0:00:08]} cxd4 {[%emt 0:00:24]} 10. cxd4 {[%emt 0:00:10]} O-O {[%emt 0:09:59]} 11. Nc3 {[%emt 0:00:48]} e6 {[%emt 0:10:57] B52: Sicilian: Moscow Variation with 3...Bd7} (11... Rac8 12. h3 h6 13. Bf4 g5 14. Bh2 g4 15. Nh4 gxh3 16. Nf5 d5 17. Nxd5 Nxe4 18. Qg4 Ng5 19. Nxh6+ Bxh6 20. Qxd7 {1-0 (20) Mamedov,R (2709)-Abdyjapar,A (2382) Riadh 2017}) 12. Bg5 {[%emt 0:06:39]} h6 {[%emt 0:07:24]} 13. Bd2 $146 {[%emt 0:18:54]} ({Predecessor:} 13. Bh4 Rfe8 14. Qd2 g5 15. Bg3 d5 16. e5 Ne4 17. Qe3 Nxc3 18. Qxc3 Rac8 19. Qd2 {1-0 (42) Mokshanov,A (2372)-Tantsiura,M (2138) St Petersburg 2011}) 13... Qe7 {[%emt 0:02:44]} 14. Rac1 {[%emt 0:04:49]} Rfd8 {[%emt 0:01:31]} 15. h3 {[%emt 0:11:53]} a6 {[%emt 0:09:07]} 16. Re1 {[%emt 0:09:31]} Rac8 {[%emt 0:12:00]} 17. b3 {[%emt 0:17:37]} Re8 {[%emt 0:06:39]} 18. Be3 {[%emt 0:01:50]} b5 {[%emt 0:04:03]} 19. a3 {[%emt 0:07:17]} Qb7 {[%emt 0:04:11]} 20. Nd2 {[%emt 0:02:00]} e5 {[%emt 0:03:24]} 21. d5 {[%emt 0:01:54]} Nd4 {[%emt 0:00:29]} 22. Qd3 {[%emt 0:00:54]} Nd7 {[%emt 0:00:36]} 23. b4 {[%emt 0:00:34]} Nb6 {[%emt 0:02:11]} 24. Bxd4 {[%emt 0:01:47]} exd4 {[%emt 0:00:19]} 25. Ne2 {[%emt 0:00:09]} Qa7 {[%emt 0:05:42]} 26. Nxd4 {[%emt 0:01:33]} Nxd5 {[%emt 0:00:39]} 27. Nc6 {[%emt 0:02:56]} Nf4 {[%emt 0:00:41]} 28. Qxd6 {[%emt 0:00:38]} Be5 {[%emt 0:04:28]} 29. Ne7+ Kh7 {[%emt 0:01:09]} 30. Nxc8 {[%emt 0:06:46]} Rxc8 {[%emt 0:00:33]} 31. Qxe5 {[%emt 0:00:22]} Rxc1 {[%emt 0:01:12]} 32. Rxc1 {[%emt 0:00:30]} Nd3 {[%emt 0:01:38]} 33. Qc7 {[%emt 0:01:52]} Qxf2+ {[%emt 0:00:09]} 34. Kh1 {[%emt 0:00:36]} Ne1 {[%emt 0:00:39]} 35. Qh2 {[%emt 0:00:45]} Qxd2 {[%emt 0:00:36]} 36. Rc7 {[%emt 0:00:29]} Kg8 {[%emt 0:00:34]} 37. Qg1 {[%emt 0:00:24]} Nd3 {[%emt 0:00:38]} 38. Rc8+ {[%emt 0:00:27]} Kh7 {[%emt 0:00:07]} 39. Kh2 $2 {[%emt 0:00:39]} (39. Qa1 $18 {[%csl Ga1][%cal Rc8h8]} Nb2 40. Ra8) 39... Qf4+ {[%emt 0:00:42]} 40. g3 {[%emt 0:00:10]} Qxe4 {[%emt 0:00:37]} 41. Qg2 {[%emt 0:30:41]} Qe6 {[%emt 0:30:39]} 42. Rc6 {[%emt 0:00:57]} Qf5 {[%emt 0:00:00]} 43. Rc3 {[%emt 0:00:00]} Ne5 {[%emt 0:00:00]} 44. Re3 {[%emt 0:00:00]} h5 {[%emt 0:00:00]} 45. Kg1 $14 {[%emt 0:00:00]} Qd7 {[%emt 0:00:00]} 46. Qe2 {[%emt 0:00:00]} f6 {[%emt 0:00:00]} 47. Kh2 {[%emt 0:00:00]} 1/2-1/2

[Event "EYTCC Open U12 2018"]
[Site "Bad Blankeburg"]
[Date "2018.07.18"]
[Round "9"]
[White "Hagner, Bennet"]
[Black "Sokolovsky, Yahli"]
[Result "1/2-1/2"]
[ECO "B56"]
[WhiteElo "1947"]
[BlackElo "2106"]
[Annotator "NA"]
[PlyCount "103"]
[EventDate "2018.07.12"]
[EventType "swiss"]
[EventCountry "GER"]
[SourceTitle "playchess.com"]
[Source "ChessBase"]
[SourceQuality "1"]
[WhiteTeam "Germany"]
[BlackTeam "Israel"]
[WhiteTeamCountry "GER"]
[BlackTeamCountry "ISR"]
[TimeControl "40/5400+30:1800+30"]

1. e4 {[%emt 0:03:32]} c5 {[%emt 0:00:00]} 2. Nf3 {[%emt 0:00:11]} d6 {[%emt 0:00:00]} 3. d4 {[%emt 0:00:15]} cxd4 {[%emt 0:00:00]} 4. Nxd4 {[%emt 0:00:06]} Nf6 {[%emt 0:00:00]} 5. Nc3 {[%emt 0:00:15]} Nbd7 {[%emt 0:00:33]} 6. Bd3 {[%emt 0:03:11] B56: Classical Sicilian: Unusual Lines} a6 {[%emt 0:00:43]} 7. O-O {[%emt 0:01:29]} g6 {[%emt 0:09:42]} 8. Be3 {[%emt 0:03:53]} (8. Re1 Bg7 9. a4 O-O 10. h3 Nc5 11. Bf1 Bd7 12. a5 Re8 13. Bg5 h6 14. Bh4 {0-1 (51) Motylev,A (2675)-Giri,A (2772) Tbilisi 2017}) 8... Bg7 {[%emt 0:01:08]} 9. f4 {[%emt 0:02:10]} Qc7 {[%emt 0:05:07]} 10. a4 {[%emt 0:07:44]} b6 $146 {[%emt 0:03:22]} ({Predecessor:} 10... O-O 11. Qf3 Nb6 12. h3 Nc4 13. Bxc4 Qxc4 14. Rfd1 e6 15. Nb3 {1-0 (34) Guzenko,A (2091)-Bodnaruk,A (2331) St Petersburg 2007}) 11. a5 {[%emt 0:07:44]} b5 {[%emt 0:02:34]} 12. Kh1 {[%emt 0:29:18]} Bb7 {[%emt 0:05:01]} 13. Qe2 {[%emt 0:16:52]} b4 {[%emt 0:13:30]} 14. Na4 {[%emt 0:04:59]} Bxe4 {[%emt 0:10:20]} 15. Nb6 {[%emt 0:02:35]} Nxb6 {[%emt 0:03:40]} 16. axb6 {[%emt 0:00:42]} Bxd3 17. cxd3 {[%emt 0:01:11]} Qb7 {[%emt 0:05:04]} 18. Nb3 {[%emt 0:01:23]} O-O {[%emt 0:04:38]} 19. Na5 {[%emt 0:02:13]} Qd5 {[%emt 0:02:18]} 20. b7 {[%emt 0:00:27]} Rae8 {[%emt 0:01:56]} 21. d4 {[%emt 0:01:47]} e5 {[%emt 0:01:49]} 22. dxe5 {[%emt 0:00:54]} dxe5 {[%emt 0:00:26]} 23. Qxa6 {[%emt 0:00:29]} Ng4 {[%emt 0:04:48]} 24. Rad1 {[%emt 0:01:47]} Qe4 {[%emt 0:02:46]} 25. Bc5 {[%emt 0:01:18]} exf4 {[%emt 0:06:43]} 26. Bxf8 {[%emt 0:02:16]} Bxf8 {[%emt 0:10:31]} 27. Qc6 {[%emt 0:02:00]} Qe7 {[%emt 0:04:44]} 28. Nc4 {[%emt 0:02:01]} Ne3 {[%emt 0:02:04]} 29. Rd7 {[%emt 0:00:53]} Qg5 30. Nxe3 {[%emt 0:00:26]} fxe3 {[%emt 0:00:43]} 31. Rdxf7 {[%emt 0:00:20]} Qd8 {[%emt 0:00:45]} 32. Rxf8+ {[%emt 0:00:43]} Rxf8 {[%emt 0:00:02]} 33. Qe6+ {[%emt 0:00:16]} Kg7 {[%emt 0:00:21]} 34. Qe5+ {[%emt 0:00:15]} Kh6 {[%emt 0:00:18]} 35. Qxe3+ {[%emt 0:00:12]} Kg7 {[%emt 0:01:13]} 36. Qe5+ {[%emt 0:00:47]} Kh6 {[%emt 0:00:05]} 37. Re1 {[%emt 0:00:38]} Qd3 {[%emt 0:01:05]} 38. h3 {[%emt 0:00:33]} Qd2 {[%emt 0:00:30]} 39. Rg1 {[%emt 0:00:38]} Qd8 {[%emt 0:00:23]} 40. Re1 {[%emt 0:00:53]} Qb8 {[%emt 0:00:29]} 41. Qe3+ {[%emt 0:30:36]} Kg7 {[%emt 0:30:26]} 42. Qd4+ {[%emt 0:00:21]} Kg8 {[%emt 0:00:29]} 43. Qd5+ {[%emt 0:00:35]} Kh8 {[%emt 0:00:38]} 44. Qd4+ {[%emt 0:00:37]} Kg8 {[%emt 0:00:02]} 45. Qc4+ {[%emt 0:00:14]} Kh8 {[%emt 0:00:53]} 46. Re7 {[%emt 0:00:36]} Qd6 {[%emt 0:00:00]} 47. Re6 {[%emt 0:00:00]} Qd7 {[%emt 0:00:00]} 48. Qxb4 {[%emt 0:00:00]} Rb8 {[%emt 0:00:00]} 49. Re7 {[%emt 0:00:00]} Qd3 {[%emt 0:00:00]} 50. Qc3+ {[%emt 0:00:00]} Qxc3 {[%emt 0:00:00]} 51. bxc3 {[%emt 0:00:00]} h5 {[%emt 0:00:00]} 52. Rc7 {[%emt 0:00:00]} 1/2-1/2

[Event "EYTCC Open U12 2018"]
[Site "Bad Blankeburg"]
[Date "2018.07.18"]
[Round "9"]
[White "Aizenberg, Benny"]
[Black "Ermitsch, Magnus"]
[Result "1-0"]
[ECO "B85"]
[WhiteElo "1941"]
[BlackElo "1594"]
[Annotator "NA"]
[PlyCount "75"]
[EventDate "2018.07.12"]
[EventType "swiss"]
[EventCountry "GER"]
[SourceTitle "playchess.com"]
[Source "ChessBase"]
[SourceQuality "1"]
[WhiteTeam "Israel"]
[BlackTeam "Germany"]
[WhiteTeamCountry "ISR"]
[BlackTeamCountry "GER"]
[TimeControl "40/5400+30:1800+30"]

1. e4 {[%emt 0:00:00]} c5 {[%emt 0:00:41]} 2. Nf3 {[%emt 0:00:00]} e6 {[%emt 0:01:24]} 3. d4 {[%emt 0:00:00]} cxd4 {[%emt 0:01:32]} 4. Nxd4 {[%emt 0:00:00]} Nc6 {[%emt 0:01:41]} 5. Nc3 {[%emt 0:00:00]} Qc7 {[%emt 0:01:30]} 6. Be2 {[%emt 0:00:00]} a6 {[%emt 0:04:29]} 7. O-O {[%emt 0:00:03]} Nf6 {[%emt 0:00:55]} 8. Be3 {[%emt 0:00:04]} Be7 {[%emt 0:03:15]} 9. f4 {[%emt 0:02:22]} d6 {[%emt 0:02:19]} 10. Qe1 {[%emt 0:04:13]} O-O {[%emt 0:02:07]} 11. Qg3 {[%emt 0:00:30]} Bd7 {[%emt 0:11:44]} 12. Kh1 {[%emt 0:16:56]} Rac8 {[%emt 0:03:14]} 13. e5 {[%emt 0:02:41]} Nxd4 {[%emt 0:03:49]} 14. Bxd4 {[%emt 0:00:40]} Ne8 {[%emt 0:01:48]} 15. Ne4 {[%emt 0:03:08]} dxe5 {[%emt 0:02:46]} 16. fxe5 {[%emt 0:02:24]} f5 {[%emt 0:03:02]} 17. exf6 {[%emt 0:01:51]} Nxf6 {[%emt 0:01:21]} 18. Be5 {[%emt 0:01:27]} Qd8 {[%emt 0:01:03]} 19. Rad1 {[%emt 0:03:25]} Kh8 {[%emt 0:04:30]} 20. Ng5 {[%emt 0:01:54]} Qe8 {[%emt 0:03:06]} 21. c4 {[%emt 0:05:21]} h6 {[%emt 0:04:31]} 22. Ne4 {[%emt 0:01:25]} Qf7 {[%emt 0:01:38]} 23. Rxd7 {[%emt 0:00:49]} Nxe4 {[%emt 0:00:30]} 24. Qxg7+ {[%emt 0:05:56]} Qxg7 {[%emt 0:00:12]} 25. Bxg7+ {[%emt 0:00:01]} Kxg7 {[%emt 0:00:27]} 26. Rxe7+ {[%emt 0:00:06]} Kg8 {[%emt 0:01:51]} 27. Rxf8+ {[%emt 0:00:17]} Rxf8 {[%emt 0:00:26]} 28. Rxe6 {[%emt 0:00:18]} Nc5 {[%emt 0:01:47]} 29. Re5 {[%emt 0:00:06]} Nd7 {[%emt 0:01:17]} 30. Re7 {[%emt 0:00:06]} Nc5 {[%emt 0:02:23]} 31. Bf3 {[%emt 0:00:16]} Rf6 {[%emt 0:00:52]} 32. b4 {[%emt 0:00:19]} Kf8 {[%emt 0:00:49]} 33. Rc7 {[%emt 0:00:44]} Nd3 {[%emt 0:01:52]} 34. Rxb7 {[%emt 0:00:05]} Ne5 {[%emt 0:00:07]} 35. c5 {[%emt 0:01:40]} Nxf3 {[%emt 0:00:23]} 36. gxf3 {[%emt 0:00:07]} Rxf3 {[%emt 0:00:10]} 37. a4 {[%emt 0:00:35]} Rf4 {[%emt 0:02:09]} 38. c6 {[%emt 0:00:32]} 1-0

[Event "EYTCC Open U12 2018"]
[Site "Bad Blankeburg"]
[Date "2018.07.18"]
[Round "9"]
[White "Mizrahi, Ido"]
[Black "Deuer, Marius"]
[Result "1-0"]
[ECO "E32"]
[WhiteElo "1914"]
[BlackElo "1834"]
[Annotator "NA"]
[PlyCount "89"]
[EventDate "2018.07.12"]
[EventType "swiss"]
[EventCountry "GER"]
[SourceTitle "playchess.com"]
[Source "ChessBase"]
[SourceQuality "1"]
[WhiteTeam "Israel"]
[BlackTeam "Germany"]
[WhiteTeamCountry "ISR"]
[BlackTeamCountry "GER"]
[TimeControl "40/5400+30:1800+30"]

1. d4 {[%emt 0:00:00]} Nf6 {[%emt 0:00:00]} 2. c4 {[%emt 0:00:00]} e6 {[%emt 0:00:00]} 3. Nc3 {[%emt 0:00:00]} Bb4 {[%emt 0:00:00]} 4. Qc2 {[%emt 0:00:00]} O-O {[%emt 0:01:28]} 5. Nf3 {[%emt 0:00:00]} d6 {[%emt 0:07:43]} 6. a3 {[%emt 0:02:48]} Bxc3+ 7. Qxc3 {[%emt 0:00:02]} h6 {[%emt 0:04:47]} 8. e3 {[%emt 0:04:35]} Qe7 {[%emt 0:03:27]} 9. b4 {[%emt 0:02:33]} Nbd7 {[%emt 0:06:40]} 10. Bb2 {[%emt 0:02:08]} Re8 {[%emt 0:02:03]} 11. Be2 {[%emt 0:03:29]} b6 {[%emt 0:06:36]} 12. O-O {[%emt 0:03:21]} Bb7 {[%emt 0:01:30]} 13. Rfd1 {[%emt 0:03:12]} e5 {[%emt 0:06:57]} 14. dxe5 {[%emt 0:05:38]} Nxe5 {[%emt 0:01:49]} 15. Nxe5 {[%emt 0:01:07]} dxe5 {[%emt 0:06:11]} 16. Rac1 {[%emt 0:11:14]} c5 {[%emt 0:03:52]} 17. b5 {[%emt 0:07:59]} Qc7 {[%emt 0:10:09]} 18. Qc2 {[%emt 0:07:33]} Be4 {[%emt 0:03:36]} 19. Bd3 {[%emt 0:00:53]} Bb7 {[%emt 0:00:51]} 20. Bc3 {[%emt 0:04:32]} Rad8 {[%emt 0:04:40]} 21. Qb2 {[%emt 0:05:04]} Ba8 {[%emt 0:04:56]} 22. Bb1 {[%emt 0:04:35]} Qb7 {[%emt 0:04:52]} 23. f3 {[%emt 0:00:41]} Rxd1+ {[%emt 0:01:54]} 24. Rxd1 {[%emt 0:00:01]} Qe7 {[%emt 0:00:21]} 25. Qc2 {[%emt 0:07:03]} g6 {[%emt 0:04:52]} 26. a4 {[%emt 0:03:48]} Kg7 {[%emt 0:03:12]} 27. a5 {[%emt 0:03:58]} Qe6 {[%emt 0:00:40]} 28. Bb2 {[%emt 0:08:22]} Bb7 {[%emt 0:01:37]} 29. a6 {[%emt 0:02:00]} Ba8 {[%emt 0:01:10]} 30. Qd3 {[%emt 0:00:19]} e4 {[%emt 0:02:43]} 31. fxe4 {[%emt 0:00:16]} Bxe4 32. Qxe4 {[%emt 0:00:25]} Qxe4 {[%emt 0:00:50]} 33. Bxe4 {[%emt 0:00:08]} Rxe4 {[%emt 0:00:06]} 34. Rd6 {[%emt 0:00:22]} Re6 {[%emt 0:00:42]} 35. Rxe6 {[%emt 0:01:05]} fxe6 {[%emt 0:00:07]} 36. Be5 {[%emt 0:00:01]} Kf7 {[%emt 0:00:52]} 37. Bb8 {[%emt 0:00:11]} Ke7 {[%emt 0:02:35]} 38. Bxa7 {[%emt 0:00:17]} Kd7 {[%emt 0:00:18]} 39. Bxb6 {[%emt 0:00:16]} Kc8 {[%emt 0:00:15]} 40. Bxc5 {[%emt 0:00:19]} Kb8 {[%emt 0:00:05]} 41. b6 {[%emt 0:32:09]} Nd7 {[%emt 0:31:58]} 42. Bd6+ {[%emt 0:00:09]} Ka8 {[%emt 0:00:09]} 43. c5 {[%emt 0:01:14]} e5 {[%emt 0:00:27]} 44. b7+ {[%emt 0:00:10]} Ka7 {[%emt 0:00:08]} 45. c6 {[%emt 0:00:04]} 1-0

[Event "EYTCC Open U12 2018"]
[Site "Bad Blankeburg"]
[Date "2018.07.18"]
[Round "9"]
[White "Metzdorf, Matteo"]
[Black "Mekhane, Adam"]
[Result "0-1"]
[ECO "C90"]
[WhiteElo "1878"]
[BlackElo "1999"]
[Annotator "NA"]
[PlyCount "130"]
[EventDate "2018.07.12"]
[EventType "swiss"]
[EventCountry "GER"]
[SourceTitle "playchess.com"]
[Source "ChessBase"]
[SourceQuality "1"]
[WhiteTeam "Germany"]
[BlackTeam "France"]
[WhiteTeamCountry "GER"]
[BlackTeamCountry "FRA"]
[TimeControl "40/5400+30:1800+30"]

1. e4 {[%emt 0:00:00]} e5 {[%emt 0:00:00]} 2. Nf3 {[%emt 0:00:00]} Nc6 {[%emt 0:00:00]} 3. Bb5 {[%emt 0:00:00]} a6 {[%emt 0:00:00]} 4. Ba4 {[%emt 0:00:00]} Nf6 {[%emt 0:00:23]} 5. d3 {[%emt 0:00:00]} b5 {[%emt 0:00:18]} 6. Bb3 {[%emt 0:00:00]} Be7 {[%emt 0:00:06]} 7. O-O {[%emt 0:00:10]} O-O {[%emt 0:00:06]} 8. Re1 {[%emt 0:00:34]} d6 {[%emt 0:01:10]} 9. c3 {[%emt 0:00:23]} Na5 {[%emt 0:08:48]} 10. Bc2 {[%emt 0:00:18]} c5 {[%emt 0:00:59]} 11. Nbd2 {[%emt 0:02:42]} Nc6 {[%emt 0:02:00]} 12. Nf1 {[%emt 0:07:04]} Re8 {[%emt 0:02:14]} 13. h3 {[%emt 0:03:37] LiveBook: 226 Partien} Bf8 {[%emt 0:02:33]} 14. d4 {[%emt 0:12:54]} cxd4 {[%emt 0:11:38]} 15. cxd4 {[%emt 0:00:17]} Nxd4 {[%emt 0:00:26]} 16. Nxd4 {[%emt 0:00:10]} exd4 17. Qxd4 {[%emt 0:00:48]} Qc7 {[%emt 0:05:38]} 18. Bb3 {[%emt 0:02:20]} Bb7 {[%emt 0:03:43]} 19. Ng3 {[%emt 0:03:45]} d5 {[%emt 0:08:12]} 20. e5 {[%emt 0:16:10]} Bc5 {[%emt 0:02:28]} 21. Qf4 {[%emt 0:07:13]} Bd6 {[%emt 0:06:20]} 22. Nf5 {[%emt 0:13:56]} Rxe5 {[%emt 0:08:40]} 23. Rxe5 {[%emt 0:01:50]} Bxe5 {[%emt 0:00:42]} 24. Qg5 {[%emt 0:02:11]} Ne4 {[%emt 0:02:06]} 25. Qe7 {[%emt 0:04:26]} Rc8 {[%emt 0:07:52]} 26. Be3 {[%emt 0:05:00]} Bxb2 {[%emt 0:03:53]} 27. Rd1 {[%emt 0:02:05]} Bf6 {[%emt 0:02:34]} 28. Qb4 {[%emt 0:05:16]} a5 {[%emt 0:06:17]} 29. Qe1 {[%emt 0:02:03]} Qd7 {[%emt 0:03:56]} 30. Nd4 {[%emt 0:01:07]} a4 {[%emt 0:04:27]} 31. Bc2 {[%emt 0:01:24]} Bxd4 {[%emt 0:00:59]} 32. Bxe4 {[%emt 0:00:10]} dxe4 {[%emt 0:01:21]} 33. Bxd4 {[%emt 0:00:25]} Qf5 {[%emt 0:02:13]} 34. Qe3 {[%emt 0:00:33]} h6 {[%emt 0:01:42]} 35. Kf1 {[%emt 0:00:57]} b4 {[%emt 0:01:16]} 36. Kg1 {[%emt 0:01:09]} Kh7 {[%emt 0:00:32]} 37. h4 {[%emt 0:00:24]} Ba6 {[%emt 0:00:51]} 38. Qg3 {[%emt 0:00:39]} Qg6 {[%emt 0:00:21]} 39. Qf4 {[%emt 0:00:43]} Be2 {[%emt 0:00:48]} 40. Re1 {[%emt 0:00:13]} Bf3 {[%emt 0:01:11]} 41. g3 {[%emt 0:30:28]} Rc2 {[%emt 0:10:28]} 42. Rb1 {[%emt 0:00:00]} Qe6 {[%emt 0:03:12]} 43. Kh2 {[%emt 0:00:00]} Qxa2 {[%emt 0:02:17]} 44. Rf1 {[%emt 0:00:00]} Qc4 {[%emt 0:03:32]} 45. Qe5 {[%emt 0:00:00]} f6 {[%emt 0:00:40]} 46. Qf5+ {[%emt 0:00:00]} Kh8 {[%emt 0:01:09]} 47. Bxf6 {[%emt 0:00:00]} gxf6 {[%emt 0:02:02]} 48. Qxf6+ {[%emt 0:00:00]} Kh7 {[%emt 0:00:12]} 49. Qf5+ {[%emt 0:00:00]} Kg7 {[%emt 0:00:26]} 50. Qe5+ {[%emt 0:00:00]} Kf7 {[%emt 0:00:37]} 51. Qf5+ {[%emt 0:00:00]} Ke7 {[%emt 0:00:20]} 52. Qe5+ {[%emt 0:00:00]} Kd7 {[%emt 0:00:43]} 53. Qg7+ {[%emt 0:00:00]} Kc6 {[%emt 0:00:47]} 54. Qf6+ {[%emt 0:00:00]} Kd5 {[%emt 0:02:13]} 55. Qf5+ {[%emt 0:00:00]} Kc6 {[%emt 0:02:43]} 56. Qc8+ {[%emt 0:00:00]} Kd6 {[%emt 0:00:45]} 57. Qf8+ {[%emt 0:00:00]} Ke5 {[%emt 0:00:41]} 58. Qf4+ {[%emt 0:00:00]} Kd4 {[%emt 0:00:40]} 59. Qf6+ {[%emt 0:00:00]} Kd3 $19 {[%emt 0:01:24]} 60. Qd6+ {[%emt 0:00:00]} Kc3 {[%emt 0:00:42]} 61. Qf6+ {[%emt 0:00:00]} Qd4 {[%emt 0:00:23]} 62. Qc6+ {[%emt 0:00:00]} Kb2 {[%emt 0:00:15]} 63. Qb5 {[%emt 0:00:00]} Rxf2+ {[%emt 0:01:01]} 64. Kh3 {[%emt 0:00:00]} Bg2+ {[%emt 0:00:33]} 65. Kg4 {[%emt 0:00:00]} Qg7+ {[%emt 0:00:39]} 0-1

[Event "EYTCC Open U12 2018"]
[Site "Bad Blankeburg"]
[Date "2018.07.18"]
[Round "9"]
[White "Nitsche, Nikolai"]
[Black "Levin, Guy"]
[Result "0-1"]
[ECO "B31"]
[WhiteElo "1726"]
[BlackElo "2008"]
[Annotator "NA"]
[PlyCount "96"]
[EventDate "2018.07.12"]
[EventType "swiss"]
[EventCountry "GER"]
[SourceTitle "playchess.com"]
[Source "ChessBase"]
[SourceQuality "1"]
[WhiteTeam "Germany"]
[BlackTeam "Israel"]
[WhiteTeamCountry "GER"]
[BlackTeamCountry "ISR"]
[TimeControl "40/5400+30:1800+30"]

1. e4 {[%emt 0:00:00]} c5 {[%emt 0:00:00]} 2. Nf3 {[%emt 0:00:00]} Nc6 {[%emt 0:00:00]} 3. Bb5 {[%emt 0:00:00]} g6 {[%emt 0:00:00]} 4. c3 {[%emt 0:00:00]} Nf6 {[%emt 0:00:02]} 5. e5 {[%emt 0:00:11]} Nd5 {[%emt 0:00:13]} 6. O-O {[%emt 0:00:10]} Bg7 {[%emt 0:01:46]} 7. d4 {[%emt 0:00:24]} cxd4 {[%emt 0:01:00]} 8. cxd4 {[%emt 0:00:47]} O-O {[%emt 0:01:49]} 9. Nc3 {[%emt 0:00:26]} Nxc3 {[%emt 0:09:13]} 10. bxc3 {[%emt 0:00:13]} d6 {[%emt 0:00:19]} 11. exd6 {[%emt 0:00:08]} Qxd6 {[%emt 0:01:45]} 12. a4 {[%emt 0:00:20]} Qc7 {[%emt 0:05:30] B31: Sicilian: 2...Nc6 3 Bb5 g6} 13. Ba3 {[%emt 0:11:32]} a6 {[%emt 0:08:26]} 14. Bxc6 {[%emt 0:01:05]} Qxc6 {[%emt 0:02:46]} 15. Bxe7 {[%emt 0:03:40]} Re8 {[%emt 0:01:43]} 16. d5 {[%emt 0:01:58]} Qxc3 {[%emt 0:00:54]} 17. Rc1 {[%emt 0:00:10]} Qa5 {[%emt 0:01:33]} 18. d6 {[%emt 0:00:25]} Bd7 {[%emt 0:01:11]} 19. Qb3 {[%emt 0:11:48]} Bc6 {[%emt 0:04:47] [#]} 20. Rfe1 $146 {[%emt 0:29:51]} ({Predecessor:} 20. Rxc6 bxc6 {1-0 (35) Arizmendi Martinez,J (2534)-Borchgrevink,H (2265) Gibraltar 2006}) 20... Bf8 {[%emt 0:16:19]} 21. Rxc6 {[%emt 0:10:34]} bxc6 {[%emt 0:04:03]} 22. Re5 {[%emt 0:00:37]} Rab8 {[%emt 0:03:51]} 23. Qd1 {[%emt 0:04:26]} Qb6 {[%emt 0:02:21]} 24. Bxf8 {[%emt 0:07:02]} Rxf8 {[%emt 0:00:54]} 25. h4 $19 {[%emt 0:05:08]} Qb1 {[%emt 0:02:39]} 26. Re1 {[%emt 0:00:27]} Qxd1 {[%emt 0:01:05]} 27. Rxd1 {[%emt 0:00:12]} Rfd8 {[%emt 0:15:04]} 28. Ne5 {[%emt 0:00:14]} Rbc8 {[%emt 0:00:57]} 29. Nc4 {[%emt 0:01:44]} c5 {[%emt 0:01:34]} 30. f4 {[%emt 0:01:20]} Rc6 {[%emt 0:00:55]} 31. Kf2 {[%emt 0:00:10]} f6 {[%emt 0:00:17]} 32. Kf3 {[%emt 0:00:19]} Kf7 {[%emt 0:00:11]} 33. g4 {[%emt 0:01:32]} Ke6 {[%emt 0:02:35]} 34. g5 {[%emt 0:03:23]} fxg5 {[%emt 0:00:56]} 35. hxg5 {[%emt 0:00:15]} Rcxd6 {[%emt 0:01:12]} 36. Nxd6 {[%emt 0:01:31]} Rxd6 {[%emt 0:00:06]} 37. Rh1 {[%emt 0:00:37]} Rd7 {[%emt 0:02:22]} 38. Rb1 {[%emt 0:02:22]} Kf5 {[%emt 0:03:58]} 39. Rb6 {[%emt 0:01:04]} Rd3+ {[%emt 0:00:53]} 40. Ke2 {[%emt 0:00:18]} Ra3 {[%emt 0:01:00]} 41. Rxa6 {[%emt 0:31:34]} Kxf4 {[%emt 0:30:13]} 42. Ra5 {[%emt 0:00:04]} Kxg5 {[%emt 0:03:21]} 43. Rxc5+ {[%emt 0:00:21]} Kh4 {[%emt 0:00:37]} 44. Ra5 {[%emt 0:00:06]} g5 {[%emt 0:00:43]} 45. Ra8 {[%emt 0:00:43]} g4 {[%emt 0:00:00]} 46. a5 {[%emt 0:00:00]} g3 {[%emt 0:00:00]} 47. a6 {[%emt 0:00:00]} g2 {[%emt 0:00:00]} 48. Rg8 {[%emt 0:00:00]} Rg3 0-1